{"text_format":"1","workbook":"xlsx","n_sheets":3,"sheets":["Лист1","Лист2","Лист3"],"not_rendered":{"charts":0,"images":21,"macros":1,"external_links":0,"defined_names":0,"comments":0,"pivot_tables":0},"unopened":[],"bounds":{"document_bytes":16777216,"sheet_cells":100000,"rows_first":2000,"rows_last":500,"rows_between":2000,"halvings":0,"cell_chars":16384,"cell_head_chars":4096},"cells_cut":0,"cells_raw":0,"read":"whole","date_system":"1900"}

{"sheet":"Лист1","index":0,"n_rows":23,"n_cols":28,"rows_kept":23,"cut":false,"hidden":false,"merged":[]}
[null,null,null,null,null,null,null,null,null,null,null,null,null,null,null,null,null,null,null,null,null,null,null,null,null,null,{"$f":"CONCATENATE(I15,J15,K15,L15,M15,N15,O15,P15)","v":""},{"$f":"IF(AA1=\"картошка\",1,0)","v":0}]
[null,null,null,null,null,null,null,null,null,null,null,null,null,null,null,null,null,null,null,null,null,null,null,null,null,null,{"$f":"CONCATENATE(N19,N20,N21)","v":""},{"$f":"IF(AA2=\"лук\",1,0)","v":0}]
[null,null,null,null,null,null,null,null,null,null,null,null,null,null,null,null,null,null,null,null,null,null,null,null,null,null,{"$f":"CONCATENATE(J9,J10,J11,J12,J13,J14,J15)","v":""},{"$f":"IF(AA3=\"капуста\",1,0)","v":0}]
[null,null,null,null,null,null,null,null,null,null,null,null,null,null,null,null,null,null,null,8,null,null,null,null,null,null,{"$f":"CONCATENATE(R16,R17,R18,R19,R20,R21)","v":""},{"$f":"IF(AA4=\"чеснок\",1,0)","v":0}]
[null,null,null,null,null,null,null,null,null,null,null,null,null,null,null,null,null,null,null,null,null,null,null,null,null,null,{"$f":"CONCATENATE(R7,R8,R9,R10,R11,R12,R13)","v":""},{"$f":"IF(AA5=\"морковь\",1,0)","v":0}]
[null,null,null,null,null,null,null,null,null,null,null,null,null,null,null,null,null,5,null,null,null,null,null,null,null,null,{"$f":"CONCATENATE(L15,L16,L17,L18,L19)","v":""},{"$f":"IF(AA6=\"тыква\",1,0)","v":0}]
[null,null,null,null,null,null,null,null,null,null,null,null,null,null,null,null,null,null,null,null,null,null,null,null,null,null,{"$f":"CONCATENATE(G9,H9,I9,J9,K9,L9)","v":""},{"$f":"IF(AA7=\"свекла\",1,0)","v":0}]
[null,null,null,null,null,null,null,null,null,3,null,null,null,null,null,10,null,null,null,null,null,null,null,null,null,null,{"$f":"CONCATENATE(T5,T6,T7,T8,T9)","v":""},{"$f":"IF(AA8=\"перец\",1,0)","v":0}]
[null,null,null,null,null,7,null,null,null,null,null,null,null,12,null,null,null,null,null,null,null,null,null,null,null,null,{"$f":"CONCATENATE(J11,K11,L11,M11,N11,O11,P11)","v":""},{"$f":"IF(AA9=\"помидор\",1,0)","v":0}]
[null,null,null,null,null,null,null,null,null,null,null,null,null,null,null,null,null,null,null,null,null,null,null,null,null,null,{"$f":"CONCATENATE(P9,P10,P11,P12,P13)","v":""},{"$f":"IF(AA10=\"горох\",1,0)","v":0}]
[null,null,null,null,null,null,null,null,9,null,null,null,null,null,null,null,null,null,null,null,null,null,null,null,null,null,{"$f":"CONCATENATE(K19,L19,M19,N19,O19,P19,Q19,R19)","v":""},{"$f":"IF(AA11=\"баклажан\",1,0)","v":0}]
[null,null,null,null,null,null,null,null,null,null,null,null,null,null,null,null,null,null,null,null,null,null,null,null,null,null,{"$f":"CONCATENATE(O9,P9,Q9,R9,S9,T9)","v":""},{"$f":"IF(AA12=\"огурец\",1,0)","v":0}]
[]
[null,null,null,null,null,null,null,null,null,null,null,6]
[null,null,null,null,null,null,null,1,null,null,null,null,null,null,null,null,null,4]
[]
[]
[null,null,null,null,null,null,null,null,null,null,null,null,null,2]
[null,null,null,null,null,null,null,null,null,11]
[]
[]
[]
[null,null,null,null,null,null,null,null,null,null,null,null,null,null,null,null,null,null,null,null,null,null,null,"кол-во баллов ",{"$f":"SUM($AB1:$AB12)","v":0}]

{"sheet":"Лист2","index":1,"n_rows":0,"n_cols":0,"rows_kept":0,"cut":false,"hidden":false,"merged":[]}

{"sheet":"Лист3","index":2,"n_rows":0,"n_cols":0,"rows_kept":0,"cut":false,"hidden":false,"merged":[]}